[Event "Titled Tuesday Blitz March 08 Late 2022"]
[White "Derraugh, Geordie"]
[Black "Supatashvili, Khvicha"]
[WhiteFideId "2603950"]
[BlackFideId "13600664"]
[WhiteElo "2410"]
[BlackElo "2731"]
[Result "1-0"]
[Round "01"]
[TimeControl "180+1"]
[Date "2022.03.09"]
[WhiteClock "0:00:06"]
[BlackClock "0:00:04"]

1. e4 {[%clk 0:03:00]}  c6 {[%clk 0:02:57]} 2. c4 {[%clk 0:02:58]}  d5 {[%clk 0:02:56]} 3. exd5 {[%clk 0:02:59]}  cxd5 {[%clk 0:02:56]} 4. cxd5 {[%clk 0:03:00]}  Nf6 {[%clk 0:02:56]} 5. Nc3 {[%clk 0:03:01]}  Nxd5 {[%clk 0:02:56]} 6. Bc4 {[%clk 0:03:01]}  Nxc3 {[%clk 0:02:53]} 7. Qb3 {[%clk 0:02:59]}  e6 {[%clk 0:02:50]} 8. bxc3 {[%clk 0:02:59]}  Nc6 {[%clk 0:02:46]} 9. Bb5 {[%clk 0:02:50]}  Bd7 {[%clk 0:02:43]} 10. d4 {[%clk 0:02:49]}  Bd6 {[%clk 0:02:30]} 11. Nf3 {[%clk 0:02:49]}  O-O {[%clk 0:02:29]} 12. O-O {[%clk 0:02:48]}  Rc8 {[%clk 0:02:24]} 13. Bd3 {[%clk 0:02:40]}  Na5 {[%clk 0:02:16]} 14. Qc2 {[%clk 0:02:40]}  h6 {[%clk 0:02:14]} 15. Be3 {[%clk 0:02:39]}  Nc4 {[%clk 0:02:12]} 16. Rfe1 {[%clk 0:02:36]}  b5 {[%clk 0:02:09]} 17. Nd2 {[%clk 0:02:27]}  Nxe3 {[%clk 0:02:00]} 18. fxe3 {[%clk 0:02:27]}  Bc6 {[%clk 0:01:53]} 19. e4 {[%clk 0:02:20]}  e5 {[%clk 0:01:50]} 20. Qb2 {[%clk 0:02:15]}  b4 {[%clk 0:01:39]} 21. cxb4 {[%clk 0:02:10]}  exd4 {[%clk 0:01:38]} 22. Nf3 {[%clk 0:02:10]}  Re8 {[%clk 0:01:03]} 23. Qxd4 {[%clk 0:01:54]}  Qe7 {[%clk 0:00:59]} 24. a3 {[%clk 0:01:47]}  Bc7 {[%clk 0:00:55]} 25. Qb2 {[%clk 0:01:37]}  Bb6+ {[%clk 0:00:50]} 26. Kh1 {[%clk 0:01:37]}  Rcd8 {[%clk 0:00:50]} 27. Bc2 {[%clk 0:01:27]}  g5 {[%clk 0:00:49]} 28. h3 {[%clk 0:01:12]}  h5 {[%clk 0:00:48]} 29. Rad1 {[%clk 0:01:03]}  g4 {[%clk 0:00:47]} 30. Ng1 {[%clk 0:00:56]}  Bc7 {[%clk 0:00:35]} 31. Rxd8 {[%clk 0:00:43]}  Rxd8 {[%clk 0:00:34]} 32. Qc3 {[%clk 0:00:43]}  Bb7 {[%clk 0:00:25]} 33. Bb3 {[%clk 0:00:30]}  Be5 {[%clk 0:00:22]} 34. Qe3 {[%clk 0:00:29]}  Kg7 {[%clk 0:00:19]} 35. Rf1 {[%clk 0:00:30]}  f6 {[%clk 0:00:19]} 36. h4 {[%clk 0:00:28]}  f5 {[%clk 0:00:17]} 37. Qg5+ {[%clk 0:00:18]}  Qxg5 {[%clk 0:00:17]} 38. hxg5 {[%clk 0:00:19]}  Bxe4 {[%clk 0:00:16]} 39. Rc1 {[%clk 0:00:12]}  h4 {[%clk 0:00:16]} 40. Ne2 {[%clk 0:00:10]}  h3 {[%clk 0:00:16]} 41. Kg1 {[%clk 0:00:09]}  h2+ {[%clk 0:00:15]} 42. Kh1 {[%clk 0:00:09]}  Rd2 {[%clk 0:00:15]} 43. Re1 {[%clk 0:00:10]}  g3 {[%clk 0:00:14]} 44. Be6 {[%clk 0:00:07]}  f4 {[%clk 0:00:13]} 45. Bg4 {[%clk 0:00:04]}  Kg6 {[%clk 0:00:13]} 46. Nxf4+ {[%clk 0:00:01]}  Bxf4 {[%clk 0:00:12]} 47. Rxe4 {[%clk 0:00:02]}  Kxg5 {[%clk 0:00:12]} 48. Bf3 {[%clk 0:00:02]}  Rf2 {[%clk 0:00:11]} 49. Re1 {[%clk 0:00:03]}  Ra2 {[%clk 0:00:10]} 50. b5 {[%clk 0:00:02]}  Rxa3 {[%clk 0:00:10]} 51. Bc6 {[%clk 0:00:03]}  Ra2 {[%clk 0:00:10]} 52. Rf1 {[%clk 0:00:03]}  Be3 {[%clk 0:00:09]} 53. Re1 {[%clk 0:00:03]}  Bf2 {[%clk 0:00:09]} 54. Rd1 {[%clk 0:00:04]}  Kf4 {[%clk 0:00:09]} 55. Rc1 {[%clk 0:00:03]}  Ke5 {[%clk 0:00:09]} 56. Rd1 {[%clk 0:00:03]}  Ke6 {[%clk 0:00:09]} 57. Bd5+ {[%clk 0:00:02]}  Ke5 {[%clk 0:00:09]} 58. Bxa2 {[%clk 0:00:03]}  Ke4 {[%clk 0:00:09]} 59. Bd5+ {[%clk 0:00:03]}  Ke5 {[%clk 0:00:09]} 60. Bf3 {[%clk 0:00:04]}  Kf4 {[%clk 0:00:09]} 61. Rc1 {[%clk 0:00:04]}  Ke5 {[%clk 0:00:08]} 62. Rc4 {[%clk 0:00:05]}  Kd6 {[%clk 0:00:07]} 63. Rg4 {[%clk 0:00:05]}  Ke5 {[%clk 0:00:07]} 64. Rg6 {[%clk 0:00:06]}  Kd4 {[%clk 0:00:06]} 65. Rc6 {[%clk 0:00:05]}  Ke5 {[%clk 0:00:06]} 66. Rc4 {[%clk 0:00:06]}  Kd6 {[%clk 0:00:05]} 67. Be2 {[%clk 0:00:05]}  Ke5 {[%clk 0:00:05]} 68. Rc3 {[%clk 0:00:05]}  Kd6 {[%clk 0:00:05]} 69. Rf3 {[%clk 0:00:05]}  Ke5 {[%clk 0:00:06]} 70. Rxf2 {[%clk 0:00:05]}  gxf2 {[%clk 0:00:05]} 71. Kxh2 {[%clk 0:00:06]}  Kf4 {[%clk 0:00:05]} 72. g3+ {[%clk 0:00:05]}  Ke3 {[%clk 0:00:04]} 73. Bf1 {[%clk 0:00:05]}  Kf3 {[%clk 0:00:04]} 74. Kh3 {[%clk 0:00:06]}  Ke3 {[%clk 0:00:04]} 75. Kg2 {[%clk 0:00:06]}  Kd2 {[%clk 0:00:04]} 76. Kxf2 {[%clk 0:00:06]} 1-0


[Site "https://www.chess.com"]

[Event "Titled Tuesday Blitz March 08 Late 2022"]
[White "Desideri, Ricardo Maruchi"]
[Black "Hnydiuk, Aleksander"]
[WhiteFideId "2110440"]
[BlackFideId "1109057"]
[WhiteElo "1945"]
[BlackElo "2374"]
[Result "0-1"]
[Round "01"]
[TimeControl "180+1"]
[Date "2022.03.09"]
[WhiteClock "0:01:48"]
[BlackClock "0:02:27"]

1. e4 {[%clk 0:02:51]}  Nf6 {[%clk 0:02:59]} 2. e5 {[%clk 0:02:48]}  Nd5 {[%clk 0:02:59]} 3. d4 {[%clk 0:02:48]}  d6 {[%clk 0:02:59]} 4. c4 {[%clk 0:02:49]}  Nb6 {[%clk 0:02:59]} 5. f4 {[%clk 0:02:49]}  dxe5 {[%clk 0:02:58]} 6. fxe5 {[%clk 0:02:50]}  Nc6 {[%clk 0:02:58]} 7. Be3 {[%clk 0:02:47]}  Bf5 {[%clk 0:02:58]} 8. Nc3 {[%clk 0:02:47]}  e6 {[%clk 0:02:58]} 9. Be2 {[%clk 0:02:47]}  Be7 {[%clk 0:02:58]} 10. Nf3 {[%clk 0:02:47]}  O-O {[%clk 0:02:57]} 11. O-O {[%clk 0:02:48]}  f6 {[%clk 0:02:57]} 12. exf6 {[%clk 0:02:32]}  Bxf6 {[%clk 0:02:58]} 13. a3 {[%clk 0:02:12]}  Qe8 {[%clk 0:02:57]} 14. d5 {[%clk 0:02:09]}  exd5 {[%clk 0:02:50]} 15. Bxb6 {[%clk 0:02:10]}  axb6 {[%clk 0:02:43]} 16. Qxd5+ {[%clk 0:01:53]}  Kh8 {[%clk 0:02:42]} 17. Qxf5 {[%clk 0:01:47]}  Bxc3 {[%clk 0:02:29]} 18. Nd4 {[%clk 0:01:48]}  Bxd4+ {[%clk 0:02:27]} 0-1


[Site "https://www.chess.com"]

[Event "Titled Tuesday Blitz March 08 Late 2022"]
[White "Djordjevic, Vuk"]
[Black "Rabineau, Clement"]
[WhiteFideId "902098"]
[BlackFideId "628891"]
[WhiteElo "2710"]
[BlackElo "2396"]
[Result "1-0"]
[Round "01"]
[TimeControl "180+1"]
[Date "2022.03.09"]
[WhiteClock "0:01:10"]
[BlackClock "0:00:34"]

1. d4 {[%clk 0:03:00]}  d6 {[%clk 0:03:00]} 2. Bg5 {[%clk 0:02:59]}  h6 {[%clk 0:02:56]} 3. Bh4 {[%clk 0:02:57]}  g5 {[%clk 0:02:51]} 4. Bg3 {[%clk 0:02:57]}  Bg7 {[%clk 0:02:50]} 5. e3 {[%clk 0:02:57]}  c5 {[%clk 0:02:48]} 6. c3 {[%clk 0:02:57]}  Nc6 {[%clk 0:02:47]} 7. Bd3 {[%clk 0:02:56]}  Qb6 {[%clk 0:02:40]} 8. Qc2 {[%clk 0:02:52]}  Nf6 {[%clk 0:02:32]} 9. Nd2 {[%clk 0:02:50]}  cxd4 {[%clk 0:02:26]} 10. exd4 {[%clk 0:02:49]}  Nh5 {[%clk 0:02:13]} 11. Ne2 {[%clk 0:02:42]}  Be6 {[%clk 0:01:56]} 12. Nc4 {[%clk 0:02:34]}  Bxc4 {[%clk 0:01:29]} 13. Bxc4 {[%clk 0:02:35]}  Na5 {[%clk 0:01:09]} 14. Qa4+ {[%clk 0:02:23]}  Kf8 {[%clk 0:01:09]} 15. Bd3 {[%clk 0:02:20]}  Rc8 {[%clk 0:01:09]} 16. O-O {[%clk 0:02:15]}  a6 {[%clk 0:01:07]} 17. b4 {[%clk 0:01:59]}  Nc6 {[%clk 0:01:06]} 18. b5 {[%clk 0:01:59]}  axb5 {[%clk 0:01:01]} 19. Bxb5 {[%clk 0:02:00]}  Kg8 {[%clk 0:00:53]} 20. Rab1 {[%clk 0:01:57]}  Qc7 {[%clk 0:00:53]} 21. Bd3 {[%clk 0:01:51]}  Na5 {[%clk 0:00:41]} 22. Rb5 {[%clk 0:01:43]}  Nc6 {[%clk 0:00:38]} 23. Rfb1 {[%clk 0:01:42]}  Nd8 {[%clk 0:00:39]} 24. Rc5 {[%clk 0:01:28]}  Qb8 {[%clk 0:00:37]} 25. Qd7 {[%clk 0:01:15]}  Nc6 {[%clk 0:00:34]} 26. Rxc6 {[%clk 0:01:10]} 1-0


[Site "https://www.chess.com"]

[Event "Titled Tuesday Blitz March 08 Late 2022"]
[White "Dolzhykova, Kateryna"]
[Black "Ibarra Jerez, Jose Carlos"]
[WhiteFideId "14113414"]
[BlackFideId "2226332"]
[WhiteElo "2184"]
[BlackElo "2626"]
[Result "0-1"]
[Round "01"]
[TimeControl "180+1"]
[Date "2022.03.08"]
[WhiteClock "0:00:02"]
[BlackClock "0:01:11"]

1. e4 {[%clk 0:01:47]}  c5 {[%clk 0:02:56]} 2. Nf3 {[%clk 0:01:38]}  e6 {[%clk 0:02:56]} 3. d3 {[%clk 0:01:29]}  Nc6 {[%clk 0:02:55]} 4. Nbd2 {[%clk 0:01:30]}  g6 {[%clk 0:02:55]} 5. g3 {[%clk 0:01:06]}  Bg7 {[%clk 0:02:55]} 6. Bg2 {[%clk 0:01:07]}  Nge7 {[%clk 0:02:52]} 7. O-O {[%clk 0:01:08]}  O-O {[%clk 0:02:52]} 8. Re1 {[%clk 0:00:39]}  d5 {[%clk 0:02:50]} 9. e5 {[%clk 0:00:39]}  Qc7 {[%clk 0:02:50]} 10. Qe2 {[%clk 0:00:39]}  g5 {[%clk 0:02:50]} 11. h3 {[%clk 0:00:28]}  h6 {[%clk 0:02:37]} 12. c3 {[%clk 0:00:24]}  b6 {[%clk 0:02:33]} 13. Nf1 {[%clk 0:00:20]}  Ng6 {[%clk 0:02:33]} 14. d4 {[%clk 0:00:18]}  cxd4 {[%clk 0:02:32]} 15. cxd4 {[%clk 0:00:19]}  Nb4 {[%clk 0:02:32]} 16. Rd1 {[%clk 0:00:05]}  Ba6 {[%clk 0:02:27]} 17. Qd2 {[%clk 0:00:05]}  Nc6 {[%clk 0:01:44]} 18. a3 {[%clk 0:00:04]}  Na5 {[%clk 0:01:44]} 19. Ne3 {[%clk 0:00:05]}  Nb3 {[%clk 0:01:44]} 20. Qb4 {[%clk 0:00:05]}  Nxa1 {[%clk 0:01:40]} 21. Bd2 {[%clk 0:00:05]}  Nc2 {[%clk 0:01:34]} 22. Nxc2 {[%clk 0:00:04]}  Qxc2 {[%clk 0:01:34]} 23. Rc1 {[%clk 0:00:05]}  Qd3 {[%clk 0:01:19]} 24. Rc3 {[%clk 0:00:04]}  Qb5 {[%clk 0:01:19]} 25. Qd6 {[%clk 0:00:04]}  Rfd8 {[%clk 0:01:15]} 26. Qc7 {[%clk 0:00:03]}  Rdc8 {[%clk 0:01:12]} 27. Qd6 {[%clk 0:00:02]}  Bf8 {[%clk 0:01:11]} 0-1


[Site "https://www.chess.com"]

[Event "Titled Tuesday Blitz March 08 Late 2022"]
[White "Dounis, Alexandros"]
[Black "Dubov, Daniil"]
[WhiteFideId "4213238"]
[BlackFideId "24126055"]
[WhiteElo "2204"]
[BlackElo "2791"]
[Result "0-1"]
[Round "01"]
[TimeControl "180+1"]
[Date "2022.03.08"]
[WhiteClock "0:00:17"]
[BlackClock "0:01:12"]

1. Nf3 {[%clk 0:02:59]}  Nf6 {[%clk 0:02:59]} 2. g3 {[%clk 0:02:59]}  b6 {[%clk 0:02:58]} 3. Bg2 {[%clk 0:02:59]}  Bb7 {[%clk 0:02:59]} 4. O-O {[%clk 0:03:00]}  c5 {[%clk 0:03:00]} 5. c4 {[%clk 0:03:00]}  g6 {[%clk 0:02:59]} 6. Nc3 {[%clk 0:02:57]}  Bg7 {[%clk 0:03:00]} 7. d4 {[%clk 0:02:56]}  cxd4 {[%clk 0:03:00]} 8. Qxd4 {[%clk 0:02:55]}  d6 {[%clk 0:02:59]} 9. Rd1 {[%clk 0:02:54]}  Nbd7 {[%clk 0:02:58]} 10. Be3 {[%clk 0:02:49]}  Rc8 {[%clk 0:02:57]} 11. Rac1 {[%clk 0:02:47]}  O-O {[%clk 0:02:56]} 12. Qh4 {[%clk 0:02:45]}  h5 {[%clk 0:02:55]} 13. b3 {[%clk 0:02:42]}  a6 {[%clk 0:02:50]} 14. h3 {[%clk 0:02:41]}  Rc7 {[%clk 0:02:40]} 15. g4 {[%clk 0:02:37]}  hxg4 {[%clk 0:02:38]} 16. hxg4 {[%clk 0:02:37]}  Qa8 {[%clk 0:02:37]} 17. Nd5 {[%clk 0:02:17]}  Nxd5 {[%clk 0:02:27]} 18. cxd5 {[%clk 0:02:17]}  Rxc1 {[%clk 0:02:28]} 19. Rxc1 {[%clk 0:02:03]}  Nf6 {[%clk 0:02:28]} 20. Bxb6 {[%clk 0:01:51]}  Rc8 {[%clk 0:02:12]} 21. Rxc8+ {[%clk 0:01:44]}  Qxc8 {[%clk 0:02:13]} 22. g5 {[%clk 0:01:26]}  Nxd5 {[%clk 0:02:09]} 23. Bd4 {[%clk 0:01:25]}  e5 {[%clk 0:02:00]} 24. Ba7 {[%clk 0:01:06]}  Nf4 {[%clk 0:01:59]} 25. Be3 {[%clk 0:00:49]}  Nxg2 {[%clk 0:01:53]} 26. Kxg2 {[%clk 0:00:47]}  d5 {[%clk 0:01:54]} 27. Bb6 {[%clk 0:00:35]}  d4 {[%clk 0:01:53]} 28. e4 {[%clk 0:00:31]}  Qc2 {[%clk 0:01:38]} 29. Bd8 {[%clk 0:00:21]}  Bxe4 {[%clk 0:01:35]} 30. Bf6 {[%clk 0:00:19]}  Qc6 {[%clk 0:01:15]} 31. Qg3 {[%clk 0:00:18]}  Bxf6 {[%clk 0:01:14]} 32. gxf6 {[%clk 0:00:18]}  Qxf6 {[%clk 0:01:15]} 33. a4 {[%clk 0:00:17]}  d3 {[%clk 0:01:12]} 0-1


[Site "https://www.chess.com"]

[Event "Titled Tuesday Blitz March 08 Late 2022"]
[White "Erdogdu, Mert"]
[Black "Bibasa, Bob"]
[WhiteFideId "6301495"]
[BlackFideId "10000240"]
[WhiteElo "2703"]
[BlackElo "2384"]
[Result "1-0"]
[Round "01"]
[TimeControl "180+1"]
[Date "2022.03.09"]
[WhiteClock "0:00:19"]
[BlackClock "0:00:17"]

1. e4 {[%clk 0:02:57]}  c5 {[%clk 0:02:59]} 2. Nf3 {[%clk 0:02:56]}  d6 {[%clk 0:02:59]} 3. d4 {[%clk 0:02:57]}  cxd4 {[%clk 0:03:00]} 4. Nxd4 {[%clk 0:02:58]}  Nf6 {[%clk 0:03:00]} 5. Nc3 {[%clk 0:02:58]}  a6 {[%clk 0:03:00]} 6. Be3 {[%clk 0:02:59]}  e5 {[%clk 0:03:01]} 7. Nb3 {[%clk 0:02:58]}  Be6 {[%clk 0:03:01]} 8. f3 {[%clk 0:02:58]}  Be7 {[%clk 0:03:01]} 9. Qd2 {[%clk 0:02:58]}  h5 {[%clk 0:03:01]} 10. O-O-O {[%clk 0:02:58]}  Nbd7 {[%clk 0:03:01]} 11. Kb1 {[%clk 0:02:58]}  Rc8 {[%clk 0:03:01]} 12. Bd3 {[%clk 0:02:58]}  b5 {[%clk 0:02:59]} 13. h3 {[%clk 0:02:58]}  h4 {[%clk 0:02:58]} 14. Rhe1 {[%clk 0:02:58]}  O-O {[%clk 0:02:53]} 15. f4 {[%clk 0:02:55]}  b4 {[%clk 0:02:47]} 16. Nd5 {[%clk 0:02:42]}  Bxd5 {[%clk 0:02:39]} 17. exd5 {[%clk 0:02:43]}  a5 {[%clk 0:02:36]} 18. fxe5 {[%clk 0:02:37]}  Nxe5 {[%clk 0:02:35]} 19. Nd4 {[%clk 0:02:29]}  Nxd5 {[%clk 0:02:27]} 20. Nf5 {[%clk 0:02:22]}  Nxe3 {[%clk 0:02:24]} 21. Qxe3 {[%clk 0:02:21]}  Bg5 {[%clk 0:02:21]} 22. Qe4 {[%clk 0:02:12]}  Nxd3 {[%clk 0:02:13]} 23. Qxd3 {[%clk 0:02:07]}  Bf4 {[%clk 0:02:03]} 24. Ne7+ {[%clk 0:02:00]}  Kh8 {[%clk 0:02:01]} 25. Qf5 {[%clk 0:01:45]}  Bh6 {[%clk 0:00:53]} 26. Nxc8 {[%clk 0:01:42]}  Qxc8 {[%clk 0:00:54]} 27. Qxc8 {[%clk 0:01:42]}  Rxc8 {[%clk 0:00:55]} 28. Rxd6 {[%clk 0:01:42]}  Rc5 {[%clk 0:00:53]} 29. Re2 {[%clk 0:01:25]}  a4 {[%clk 0:00:48]} 30. Rd4 {[%clk 0:00:56]}  Rf5 {[%clk 0:00:47]} 31. Re1 {[%clk 0:00:55]}  b3 {[%clk 0:00:39]} 32. cxb3 {[%clk 0:00:52]}  axb3 {[%clk 0:00:40]} 33. axb3 {[%clk 0:00:52]}  Rf2 {[%clk 0:00:38]} 34. Rxh4 {[%clk 0:00:47]}  Rxg2 {[%clk 0:00:37]} 35. b4 {[%clk 0:00:46]}  Rg5 {[%clk 0:00:31]} 36. Rc4 {[%clk 0:00:41]}  Rb5 {[%clk 0:00:26]} 37. Rf1 {[%clk 0:00:40]}  f5 {[%clk 0:00:26]} 38. Rc5 {[%clk 0:00:37]}  Rxb4 {[%clk 0:00:26]} 39. Rcxf5 {[%clk 0:00:38]}  Kh7 {[%clk 0:00:23]} 40. R5f3 {[%clk 0:00:33]}  Bg5 {[%clk 0:00:21]} 41. b3 {[%clk 0:00:33]}  Bf6 {[%clk 0:00:20]} 42. Kc2 {[%clk 0:00:32]}  Kg6 {[%clk 0:00:20]} 43. Rg1+ {[%clk 0:00:30]}  Kf7 {[%clk 0:00:20]} 44. Rg4 {[%clk 0:00:30]}  Rb7 {[%clk 0:00:20]} 45. Rc4 {[%clk 0:00:30]}  Re7 {[%clk 0:00:19]} 46. b4 {[%clk 0:00:30]}  Re2+ {[%clk 0:00:20]} 47. Kb3 {[%clk 0:00:30]}  Rb2+ {[%clk 0:00:20]} 48. Ka4 {[%clk 0:00:30]}  Ra2+ {[%clk 0:00:20]} 49. Ra3 {[%clk 0:00:30]}  Rb2 {[%clk 0:00:20]} 50. b5 {[%clk 0:00:29]}  Ke6 {[%clk 0:00:21]} 51. Rc6+ {[%clk 0:00:24]}  Kd7 {[%clk 0:00:21]} 52. Rd3+ {[%clk 0:00:24]}  Ke7 {[%clk 0:00:20]} 53. b6 {[%clk 0:00:24]}  Ra2+ {[%clk 0:00:20]} 54. Kb5 {[%clk 0:00:23]}  Rb2+ {[%clk 0:00:20]} 55. Ka6 {[%clk 0:00:23]}  Ra2+ {[%clk 0:00:21]} 56. Kb7 {[%clk 0:00:23]}  Ke8 {[%clk 0:00:20]} 57. Re6+ {[%clk 0:00:21]}  Kf7 {[%clk 0:00:20]} 58. Re4 {[%clk 0:00:21]}  Be7 {[%clk 0:00:18]} 59. Rd7 {[%clk 0:00:20]}  Kf6 {[%clk 0:00:18]} 60. Rexe7 {[%clk 0:00:20]}  g5 {[%clk 0:00:19]} 61. Re3 {[%clk 0:00:19]}  Kf5 {[%clk 0:00:18]} 62. Rd4 {[%clk 0:00:18]}  Ra5 {[%clk 0:00:18]} 63. Red3 {[%clk 0:00:18]}  Rb5 {[%clk 0:00:17]} 64. Rd5+ {[%clk 0:00:18]}  Rxd5 {[%clk 0:00:17]} 65. Rxd5+ {[%clk 0:00:19]} 1-0


[Site "https://www.chess.com"]

[Event "Titled Tuesday Blitz March 08 Late 2022"]
[White "Fajdetic, Hrvoje"]
[Black "Cori T., Deysi"]
[WhiteFideId "14501945"]
[BlackFideId "3801934"]
[WhiteElo "2172"]
[BlackElo "2341"]
[Result "0-1"]
[Round "01"]
[TimeControl "180+1"]
[Date "2022.03.09"]
[WhiteClock "0:00:14"]
[BlackClock "0:01:17"]

1. d4 {[%clk 0:02:57]}  Nf6 {[%clk 0:02:58]} 2. Bf4 {[%clk 0:02:56]}  e6 {[%clk 0:02:56]} 3. e3 {[%clk 0:02:56]}  c5 {[%clk 0:02:57]} 4. Nd2 {[%clk 0:02:55]}  d5 {[%clk 0:02:54]} 5. Ngf3 {[%clk 0:02:54]}  Bd6 {[%clk 0:02:55]} 6. Bg3 {[%clk 0:02:54]}  O-O {[%clk 0:02:54]} 7. c3 {[%clk 0:02:54]}  Nc6 {[%clk 0:02:46]} 8. Ne5 {[%clk 0:02:54]}  Ne8 {[%clk 0:02:34]} 9. f4 {[%clk 0:02:53]}  f6 {[%clk 0:02:32]} 10. Nef3 {[%clk 0:02:47]}  Qe7 {[%clk 0:02:31]} 11. Bb5 {[%clk 0:02:35]}  Bd7 {[%clk 0:02:29]} 12. O-O {[%clk 0:02:33]}  a6 {[%clk 0:02:24]} 13. Bxc6 {[%clk 0:02:22]}  Bxc6 {[%clk 0:02:25]} 14. Bh4 {[%clk 0:02:16]}  Qc7 {[%clk 0:02:19]} 15. Qe2 {[%clk 0:01:59]}  g6 {[%clk 0:02:14]} 16. Bg3 {[%clk 0:01:43]}  Ng7 {[%clk 0:02:14]} 17. Bf2 {[%clk 0:01:41]}  e5 {[%clk 0:02:09]} 18. fxe5 {[%clk 0:01:23]}  fxe5 {[%clk 0:02:08]} 19. Bg3 {[%clk 0:01:22]}  exd4 {[%clk 0:01:52]} 20. Bxd6 {[%clk 0:01:21]}  Qxd6 {[%clk 0:01:52]} 21. exd4 {[%clk 0:01:21]}  Rae8 {[%clk 0:01:52]} 22. Qf2 {[%clk 0:01:12]}  cxd4 {[%clk 0:01:50]} 23. Qxd4 {[%clk 0:01:11]}  Nf5 {[%clk 0:01:50]} 24. Qb6 {[%clk 0:01:01]}  Rf6 {[%clk 0:01:35]} 25. Rfe1 {[%clk 0:00:59]}  Ref8 {[%clk 0:01:35]} 26. Rad1 {[%clk 0:00:54]}  Qf4 {[%clk 0:01:31]} 27. Nb3 {[%clk 0:00:44]}  d4 {[%clk 0:01:30]} 28. Nfxd4 {[%clk 0:00:28]}  Ne3 {[%clk 0:01:21]} 29. Nf3 {[%clk 0:00:14]}  Nxd1 {[%clk 0:01:17]} 0-1


[Site "https://www.chess.com"]